bitfinex/quotes_ETHUSD_20251215
["timestamp","ask_amount","ask_price","bid_price","bid_amount"]
[1765834480569,0.001,2945.6,2945.5,4.34830933]
[1765834480769,0.4635,2945.6,2945.2,0.1986]
[1765834480982,0.0032,2945.5,2945.4,3.3951246]
[1765834481187,0.001,2945.6,2945.4,3.8916246]
[1765834481391,0.001,2945.6,2945.5,3.39500933]
[1765834481698,0.001,2945.6,2945.5,4.34830933]
[1765834484269,0.001,2945.6,2945.5,5.79775314]
[1765834490507,0.4635,2945.6,2945.5,3.39500933]
[1765834490800,0.3024,2945.6,2945.5,3.39500933]
[1765834491213,0.001,2945.6,2945.5,3.89150933]
[1765834492098,0.001,2945.6,2945.5,4.34830933]
[1765834493574,0.001,2945.6,2945.5,3.89150933]
[1765834495281,0.001,2945.6,2945.5,4.34830933]
[1765834495905,0.001,2945.6,2945.5,5.83170378]
[1765834496076,0.001,2945.6,2945.5,5.79775369]
[1765834497586,0.001,2945.6,2945.5,6.37822898]
[1765834498733,0.001,2945.6,2945.5,6.78373298]
[1765834499012,0.001,2945.9,2945.6,0.405504]
[1765834499310,0.001,2946.2,2945.8,1.07697529]
[1765834499484,0.001,2946.2,2946.1,3.89081791]
[1765834499686,0.001,2946.2,2946.1,4.4712932]
[1765834499885,0.001,2946.2,2946.1,4.9280932]
[1765834500205,0.001,2946.2,2946.1,5.1229932]
[1765834500410,0.001,2946.2,2946.1,5.8110885]
[1765834500605,0.001,2946.2,2946.1,5.3542885]
[1765834500804,0.001,2946.2,2946.1,0.4965]
[1765834500805,0.4635,2946.2,2946.1,0.4965]
[1765834501112,0.4635,2946.2,2946.0,3.39440811]
[1765834501407,0.4635,2946.2,2945.8,3.97513809]
[1765834501408,0.4635,2946.2,2945.9,0.4568]
[1765834501711,0.4635,2946.2,2945.9,3.85132607]
[1765834501914,0.001,2946.2,2946.1,0.4965]
[1765834502718,4.17872108,2946.2,2945.6,3.97526725]
[1765834502907,0.4483,2945.6,2945.2,3.39535515]
[1765834503227,0.0078,2945.5,2945.2,3.39535515]
[1765834504432,0.0078,2945.5,2945.1,3.5903307]
[1765834504597,0.001,2945.6,2945.0,0.002]
[1765834504598,0.0108,2945.2,2945.0,0.002]
[1765834504796,0.7619,2945.1,2945.0,0.002]
[1765834505207,0.3055,2945.1,2945.0,0.002]
[1765834506318,0.7619,2945.1,2945.0,0.002]
[1765834506820,4.15737044,2945.1,2945.0,0.002]
[1765834507126,4.96673389,2945.1,2945.0,0.002]
[1765834507302,1.57126345,2945.1,2945.0,0.002]
[1765834507500,4.96673389,2945.1,2945.0,0.002]
[1765834509225,0.001,2945.6,2945.0,0.9298]
[1765834509424,0.001,2945.6,2945.1,0.6716]
[1765834509593,0.3162,2945.1,2945.0,0.002]
[1765834510000,0.7712,2945.1,2945.0,0.002]
[1765834510200,0.3162,2945.1,2945.0,0.002]
[1765834510835,0.541,2945.3,2945.0,0.002]
[1765834511037,0.3176,2945.1,2945.0,0.002]
[1765834511411,0.7712,2945.1,2945.0,0.002]
[1765834512121,0.3176,2945.1,2945.0,0.002]
[1765834512706,0.541,2945.2,2945.0,0.002]
[1765834512907,0.3189,2945.1,2945.0,0.002]
[1765834519952,0.001,2945.6,2945.1,6.79094088]
[1765834520252,0.542,2945.6,2945.2,0.77207409]
[1765834520452,0.542,2945.6,2945.5,0.4532]
[1765834520650,0.001,2945.6,2945.5,0.4532]
[1765834521761,0.3172,2945.6,2945.2,7.52561419]
[1765834522051,0.3172,2945.6,2945.3,3.39523987]
[1765834522836,0.3172,2945.6,2945.3,3.86983987]
[1765834523159,0.001,2945.6,2945.3,4.89402038]
[1765834524856,0.001,2945.6,2945.5,0.4532]
[1765834525267,0.001,2945.6,2945.5,7.6813401]
[1765834526127,0.001,2945.6,2945.5,7.6833401]
[1765834526532,0.001,2945.6,2945.5,3.85020933]
[1765834527066,0.001,2945.6,2945.5,4.7787196]
[1765834527274,0.001,2945.6,2945.5,5.2533196]
[1765834529328,0.001,2945.6,2945.5,5.86774498]
[1765834530462,0.001,2945.6,2945.5,5.96984954]
[1765834530652,0.001,2945.6,2945.5,4.43068462]
[1765834530844,0.001,2945.6,2945.5,4.92198462]
[1765834533667,0.309,2945.6,2945.5,0.002]
[1765834534637,1.3206,2945.6,2945.5,0.002]
[1765834538767,1.79213228,2945.6,2945.5,0.002]
[1765834538984,5.18702635,2945.6,2945.5,0.002]
[1765834540954,1.32153228,2945.6,2945.5,0.002]
[1765834541175,0.85,2945.6,2945.5,0.002]
[1765834543780,0.542,2945.6,2945.5,0.4931]
[1765834544164,0.542,2945.6,2945.5,0.002]
[1765834544394,0.8516,2945.6,2945.5,0.002]
[1765834546498,0.001,2945.6,2945.5,1.02345009]
[1765834546664,0.001,2945.6,2945.5,1.80484104]
[1765834547008,0.001,2945.6,2945.5,1.77089095]
[1765834548009,0.001,2945.6,2945.5,5.16590028]
[1765834548510,0.001,2945.6,2945.5,6.17910028]
[1765834548705,0.001,2945.6,2945.5,6.79352566]
[1765834548923,0.001,2945.6,2945.5,6.75957557]
[1765834549977,0.001,2945.6,2945.5,7.16507957]
[1765834551005,0.001,2946.2,2945.9,0.405504]
[1765834551331,0.001,2946.2,2946.1,0.896604]
[1765834551502,0.001,2946.2,2946.1,8.13967043]
[1765834551878,0.001,2946.2,2946.1,7.73416643]
[1765834552088,0.001,2946.2,2946.1,11.12848434]
[1765834555379,0.001,2946.2,2946.1,10.63208434]
[1765834555578,0.001,2946.2,2946.1,12.68592217]
[1765834555980,0.001,2946.2,2946.1,12.18952217]
[1765834556519,0.001,2946.2,2946.1,12.68592217]
[1765834557510,0.001,2946.2,2946.1,5.93925574]
[1765834558020,0.001,2946.2,2946.1,4.4658932]
[1765834559788,0.3179,2946.2,2945.9,3.39454533]
[1765834559997,0.4717,2946.2,2945.9,3.39454533]
[1765834560295,0.3185,2946.0,2945.9,3.39454533]
[1765834560500,0.3185,2946.0,2945.6,3.39482397]
[1765834560822,0.001,2946.2,2945.5,3.89340933]
[1765834561179,0.4732,2946.2,2945.5,3.89340933]
[1765834561400,0.4732,2946.2,2945.5,7.28841866]
[1765834561782,3.86748299,2946.2,2945.5,7.28841866]
[1765834562113,0.3868483,2946.1,2945.5,6.79201866]
[1765834562312,0.8792483,2946.1,2945.5,6.79201866]
[1765834564121,0.8792483,2946.1,2945.5,0.002]
[1765834565423,0.3868483,2946.1,2945.5,0.002]
[1765834565618,0.4924,2946.0,2945.5,0.002]
[1765834565803,0.541,2945.9,2945.5,0.002]
[1765834568613,0.541,2945.9,2945.5,0.4641]
[1765834568814,0.541,2945.9,2945.8,0.4923]
[1765834569328,0.001,2946.2,2945.8,0.9544]
[1765834569529,0.001,2946.2,2946.1,0.4923]
[1765834569891,0.001,2946.2,2946.1,0.9544]
[1765834570504,0.001,2946.2,2946.1,3.88661791]
[1765834572425,0.001,2946.2,2946.1,4.34871791]
[1765834574697,0.001,2946.2,2946.1,5.12323189]
[1765834575198,0.001,2946.2,2946.1,5.15717506]
[1765834575435,0.001,2946.2,2946.1,6.14315435]
[1765834575600,0.001,2946.3,2946.2,0.58047529]
[1765834575797,0.001,2946.3,2946.2,1.53487529]
[1765834576022,0.001,2946.3,2946.2,2.82467038]
[1765834576335,0.001,2946.3,2946.2,2.96068709]
[1765834577434,0.001,2946.3,2946.2,13.10199184]
[1765834579747,0.001,2946.5,2946.4,7.73308134]
[1765834579915,0.001,2946.7,2946.6,13.4942041]
[1765834580110,0.001,2946.7,2946.6,15.49730204]
[1765834580333,0.001,2946.7,2946.6,15.95940204]
[1765834580659,0.542,2947.5,2947.1,0.405504]
[1765834580660,0.001,2947.5,2947.1,0.405504]
[1765834580817,0.001,2947.5,2947.3,15.08238339]
[1765834581013,0.001,2948.0,2947.4,0.98597929]
[1765834581220,0.001,2948.0,2947.6,8.22538134]
[1765834581523,0.001,2948.0,2947.6,12.15103451]
[1765834581720,0.001,2948.0,2947.8,0.897804]
[1765834581921,0.001,2948.3,2948.0,0.98597929]
[1765834582148,0.001,2948.3,2948.2,8.00083993]
[1765834582439,0.001,2948.3,2948.2,8.84147432]
[1765834582619,0.001,2948.3,2948.2,9.30357432]
[1765834583147,0.001,2948.3,2948.2,2.56440968]
[1765834583458,0.001,2948.3,2948.2,1.72377529]
[1765834583620,0.001,2948.3,2948.2,5.52117943]
[1765834583951,0.001,2948.7,2948.4,0.4923]
[1765834584246,0.001,2948.7,2948.6,0.4923]
[1765834584645,0.001,2948.7,2948.6,0.9544]
[1765834585643,0.001,2948.7,2948.6,4.92631529]
[1765834585829,0.001,2948.7,2948.6,6.09725793]
[1765834586924,0.001,2948.7,2948.6,5.63515793]
[1765834587250,0.001,2948.7,2948.6,6.09725793]
[1765834589821,0.78,2948.7,2948.0,0.4621]
[1765834590017,0.3085,2948.7,2948.1,0.4621]
[1765834590237,0.001,2948.7,2948.1,0.4621]
[1765834590638,0.4826,2948.7,2948.1,3.39194414]
[1765834590839,0.4826,2948.7,2947.8,0.1889]
[1765834591046,0.4826,2948.7,2948.4,3.39160462]
[1765834591354,0.4826,2948.7,2948.2,3.97232144]
[1765834591553,0.4826,2948.7,2948.2,0.58047529]
[1765834591719,0.4826,2948.7,2948.3,3.39175861]
[1765834591923,7.80526244,2948.7,2947.8,0.1889]
[1765834592119,0.79976624,2948.6,2947.8,0.1889]
[1765834592323,1.26286624,2948.6,2947.8,3.58122031]
[1765834592523,0.4631,2948.5,2947.9,3.39221551]
[1765834592849,0.4631,2948.5,2948.0,3.39211468]
[1765834594046,0.79976624,2948.6,2948.1,0.4943]
[1765834594243,0.541,2948.7,2948.1,0.4943]
[1765834594853,0.001,2948.7,2948.6,0.4645]
[1765834595151,0.001,2948.7,2948.0,0.58047529]
[1765834595152,0.001,2948.7,2948.2,0.4943]
[1765834595357,0.3279,2948.7,2948.2,0.4943]
[1765834596141,0.001,2948.5,2948.3,3.39178509]
[1765834596455,0.001,2948.5,2948.3,6.78357018]
[1765834596656,0.001,2948.5,2948.4,0.4645]
[1765834599953,0.001,2948.5,2948.4,3.85617005]
[1765834600129,0.001,2948.5,2948.4,4.35047005]
[1765834601247,0.001,2948.5,2948.4,5.15861226]
[1765834601449,0.001,2948.5,2948.4,5.70517085]
[1765834601652,0.001,2948.7,2948.5,0.58047529]
[1765834601958,0.001,2948.7,2948.6,0.9039184]
[1765834602135,0.54,2949.4,2948.7,0.58047529]
[1765834602335,0.54,2949.4,2949.3,0.6621]
[1765834602733,0.54,2949.4,2949.3,0.4645]
[1765834603639,0.001,2949.7,2949.3,0.9588]
[1765834603948,0.001,2949.7,2949.0,0.7376]
[1765834604151,0.001,2949.7,2949.6,0.4645]
[1765834604462,0.001,2949.7,2949.6,0.9588]
[1765834605559,0.001,2949.7,2949.6,0.4645]
[1765834606065,0.001,2949.7,2949.6,0.9588]
[1765834606264,0.001,2949.7,2949.6,4.3490902]
[1765834606562,0.001,2949.7,2949.6,5.12303898]
[1765834609356,0.001,2949.7,2949.6,5.73741717]
[1765834609562,0.001,2949.7,2949.6,5.70351427]
[1765834610070,0.001,2950.9,2949.9,0.405504]
[1765834610361,0.001,2950.9,2950.8,4.05141148]
[1765834610761,0.001,2950.9,2950.8,4.54571148]
[1765834611169,0.001,2950.9,2950.8,5.9535488]
[1765834611344,0.001,2950.9,2950.8,5.91965969]
[1765834612167,0.001,2950.9,2950.8,6.32516369]
[1765834612465,0.54,2952.0,2950.9,0.58047529]
[1765834612671,0.54,2952.0,2951.0,0.4645]
[1765834612962,0.54,2952.0,2951.0,1.84141152]
[1765834613262,0.54,2952.0,2951.0,2.33571152]
[1765834613454,0.54,2952.0,2951.1,0.405504]
[1765834613654,0.54,2952.0,2951.1,0.899804]
[1765834614067,0.54,2952.0,2951.2,0.4943]
[1765834614367,0.54,2952.0,2951.9,0.4645]
[1765834614768,0.49,2952.0,2951.9,4.34644863]
[1765834615066,0.001,2952.1,2951.9,7.76797374]
[1765834615270,0.001,2952.1,2952.0,0.9588]
[1765834616341,0.3611,2952.1,2951.5,0.58047529]
[1765834616540,0.3611,2952.1,2951.6,3.38798198]
[1765834616541,0.462,2952.0,2951.6,3.38798198]
[1765834616764,0.462,2952.0,2951.8,3.38776157]
[1765834616968,0.001,2952.1,2951.9,3.38764863]
[1765834617168,0.001,2952.1,2952.0,3.85203387]
[1765834617470,0.001,2952.1,2951.8,3.387759]
[1765834617471,0.001,2952.1,2951.8,3.38768573]
[1765834617772,0.001,2952.1,2951.6,3.88222124]
[1765834618140,0.001,2952.1,2951.7,3.38784381]
[1765834618345,0.001,2952.1,2951.6,3.88229173]
[1765834618895,0.001,2952.1,2951.7,3.88217817]
[1765834619368,0.44012899,2952.1,2951.7,3.88217817]
[1765834619741,0.001,2952.1,2951.7,3.88217817]
[1765834619942,0.001,2952.1,2951.7,7.27005634]
[1765834620142,0.001,2952.1,2951.7,3.88217817]
[1765834620460,0.3601,2951.8,2951.5,3.38799895]
[1765834620663,0.001,2952.1,2952.0,0.4645]
[1765834621048,0.001,2952.1,2952.0,0.9588]
[1765834621272,3.38714609,2953.3,2952.0,0.9588]
[1765834621576,8.17855937,2953.2,2952.1,0.6923]
[1765834621763,0.3601,2952.1,2951.7,0.4943]
[1765834621962,0.6359,2951.8,2951.0,1.1815]
[1765834622141,0.6359,2951.8,2951.0,0.6923]
[1765834622344,0.3611,2951.7,2950.8,0.6872]
[1765834622540,0.3611,2951.7,2950.8,4.48363507]
[1765834622751,0.3611,2951.7,2950.9,6.77757703]
[1765834623174,3.74900366,2951.7,2951.0,0.58047529]
[1765834623369,7.13690732,2951.7,2950.8,0.002]
[1765834623571,0.4908,2951.6,2950.8,0.002]
[1765834624380,0.4908,2951.6,2950.8,3.39090763]
[1765834624560,0.72666073,2951.5,2950.8,3.39090763]
[1765834624885,0.5008,2950.9,2950.8,0.002]
[1765834625181,1.26666073,2951.5,2950.9,0.4892]
[1765834625365,4.41894591,2951.5,2950.8,0.002]
[1765834625887,3.92814591,2951.5,2950.8,0.002]
[1765834626055,0.4908,2951.4,2950.8,0.002]
[1765834627485,0.05,2951.9,2951.3,0.6477]
[1765834627683,0.001,2952.1,2951.8,0.4541]
[1765834627988,0.001,2952.1,2952.0,0.4541]
[1765834628859,0.001,2952.1,2951.6,0.4908]
[1765834629167,0.001,2952.1,2951.3,1.31407529]
[1765834629168,0.4908,2952.0,2951.4,0.4892]
[1765834629554,0.001,2952.1,2951.5,6.77621548]
[1765834629781,0.001,2952.1,2951.6,0.4892]
[1765834630165,0.001,2952.1,2952.0,0.4541]
[1765834630365,0.001,2952.1,2952.0,0.9433]
[1765834630990,0.001,2952.1,2951.7,0.4892]
[1765834631158,0.4918,2952.1,2951.6,0.58047529]
[1765834631353,0.4918,2952.1,2951.5,7.86094015]
[1765834631354,3.87924486,2952.1,2951.5,3.38810774]
[1765834631554,0.4921,2951.6,2950.8,0.002]
[1765834631859,0.543,2951.5,2950.8,0.002]
[1765834632067,0.54,2951.4,2951.0,3.3886192]
[1765834632263,0.54,2951.4,2950.8,0.002]
[1765834632485,0.2962,2950.9,2950.8,0.002]
[1765834632673,0.4908,2951.3,2950.8,3.39091148]
[1765834632983,0.54,2951.2,2950.8,7.72312296]
[1765834633281,0.05,2951.9,2950.9,0.4892]
[1765834633282,0.2459,2951.9,2950.9,0.4892]
[1765834633483,0.54,2951.7,2951.1,0.6477]
[1765834634486,0.54,2951.7,2950.9,0.4892]
[1765834634487,4.41870004,2951.7,2950.9,0.4892]
[1765834634792,7.80660008,2951.7,2950.8,0.002]
[1765834635095,0.4908,2951.6,2950.9,3.38878693]
[1765834635384,1.27146001,2951.6,2950.8,3.39086918]
[1765834635559,1.27146001,2951.6,2950.9,3.38873989]
[1765834635761,0.4908,2951.5,2950.9,3.38873989]
[1765834636588,0.4908,2951.5,2950.8,0.002]
[1765834637162,0.4921,2950.9,2950.8,0.002]
[1765834637488,1.521,2950.9,2950.8,0.002]
[1765834638780,4.90979663,2950.9,2950.8,0.002]
[1765834638984,5.73964505,2950.9,2950.8,0.002]
[1765834645391,6.32012034,2950.9,2950.8,0.002]
[1765834645574,6.37012034,2950.9,2950.8,0.002]
[1765834650409,0.4921,2950.9,2950.8,0.002]
[1765834650701,1.0321,2950.9,2950.8,0.002]
[1765834650903,4.90439663,2950.9,2950.8,0.002]
[1765834654211,5.94037592,2950.9,2950.8,0.002]
[1765834657407,5.53487192,2950.9,2950.8,0.002]
[1765834657707,4.95439663,2950.9,2950.8,0.002]
[1765834657877,0.2962,2950.9,2950.8,0.002]
[1765834658074,0.05,2951.5,2950.8,0.4882]
[1765834658288,0.54,2951.4,2950.9,0.03388796]
[1765834658714,0.3241,2951.0,2950.8,0.002]
[1765834658911,0.7358,2950.9,2950.8,0.002]
[1765834659406,1.2018,2950.9,2950.8,0.002]
[1765834659605,5.04610063,2950.9,2950.8,0.002]
[1765834659792,5.62657592,2950.9,2950.8,0.002]
[1765834659992,6.478107,2950.9,2950.8,0.002]
[1765834661020,6.072603,2950.9,2950.8,0.002]
[1765834663311,6.478107,2950.9,2950.8,0.002]
[1765834667486,0.05,2950.4,2949.6,0.002]
[1765834667827,0.5135,2949.7,2949.6,0.002]
[1765834667986,1.0535,2949.7,2949.6,0.002]
[1765834668331,1.506,2949.7,2949.6,0.002]
[1765834668813,4.89617527,2949.7,2949.6,0.002]
[1765834669398,1.506,2949.7,2949.6,0.002]
[1765834670395,0.3222,2949.7,2949.6,0.002]
[1765834670619,0.54,2949.7,2949.6,0.002]
[1765834670785,0.8635,2949.7,2949.6,0.002]
[1765834671994,0.54,2949.7,2949.6,0.4882]
[1765834672212,0.8488,2949.7,2949.6,0.002]
[1765834672411,1.3133,2949.7,2949.6,0.002]
[1765834673593,0.8488,2949.7,2949.6,0.002]
[1765834674105,1.3133,2949.7,2949.6,0.002]
[1765834676613,0.8488,2949.7,2949.6,0.002]
[1765834677591,0.3088,2949.7,2949.6,0.002]
[1765834677802,0.54,2949.8,2949.6,0.002]
[1765834678718,0.3088,2949.7,2949.6,0.68050402]
[1765834680511,0.3088,2949.7,2949.6,4.07079422]
[1765834680710,0.54,2950.0,2949.6,7.94728442]
[1765834680906,0.3088,2949.7,2949.6,0.002]
[1765834681311,0.7733,2949.7,2949.6,0.002]
[1765834685727,0.1926,2949.9,2949.6,0.4629]
[1765834686100,3.92571425,2950.4,2949.6,0.4629]
[1765834686307,0.54,2950.3,2949.6,0.4629]
[1765834686502,1.0263,2950.3,2949.6,0.4629]
[1765834686704,1.0263,2950.3,2949.7,0.4577]
[1765834687941,1.0263,2950.3,2949.8,3.39006034]
[1765834688447,1.0263,2950.3,2949.9,0.4577]
[1765834688448,0.54,2950.3,2949.9,0.4577]
[1765834688745,0.4863,2951.3,2950.2,0.5726]
[1765834688905,0.54,2951.1,2950.7,0.4609]
[1765834689339,0.54,2951.1,2950.7,0.9186]
[1765834689828,0.54,2951.1,2950.7,4.30762633]
[1765834690030,0.54,2951.4,2950.7,5.65777781]
[1765834693537,0.1959,2951.9,2950.7,6.06328181]
[1765834693740,0.54,2951.8,2950.7,6.06328181]
[1765834693931,1.0263,2951.8,2950.7,6.06328181]
[1765834694547,0.54,2951.8,2950.7,5.65777781]
[1765834694731,0.54,2951.8,2950.7,6.06328181]
[1765834695619,0.001,2952.0,2950.7,6.06328181]
[1765834695845,0.54,2951.8,2950.7,6.06328181]
[1765834696149,0.001,2952.0,2950.8,0.98597929]
[1765834696338,0.001,2952.0,2951.9,0.4609]
[1765834696539,0.001,2952.0,2951.2,0.58047529]
[1765834696847,0.001,2952.0,2951.9,0.4609]
[1765834697252,0.4946,2952.0,2951.4,0.4577]
[1765834697945,0.001,2952.0,2951.4,0.4577]
[1765834698123,0.001,2952.0,2951.9,3.84854863]
[1765834699138,0.8192,2952.0,2951.3,0.1995]
[1765834699333,0.3256,2952.0,2951.7,3.38780567]
[1765834699536,0.1826,2951.9,2951.5,3.38800575]
[1765834699738,0.1826,2951.9,2950.4,0.4577]
[1765834699739,0.3818,2951.6,2950.4,0.4577]
[1765834699931,0.6689,2951.9,2950.4,0.4577]
[1765834699932,0.7189,2951.9,2951.1,3.38856085]
[1765834700239,1.0263,2951.8,2950.7,0.58047529]
[1765834700424,1.0263,2951.8,2950.8,0.39695355]
[1765834700622,0.001,2952.0,2951.7,0.6604]
[1765834700820,0.001,2952.0,2951.7,0.1995]
[1765834701046,0.001,2952.0,2951.3,0.1995]
[1765834701047,0.3318,2951.8,2951.3,0.1995]
[1765834701529,0.1826,2951.9,2951.1,0.1995]
[1765834701734,0.1826,2951.9,2951.3,0.4577]
[1765834702238,0.1826,2951.9,2951.4,6.77644506]
[1765834703039,0.1826,2951.9,2951.4,7.23414506]
[1765834703751,0.001,2952.0,2951.4,7.23414506]
[1765834703949,0.001,2951.8,2951.4,7.23414506]
[1765834704157,0.001,2951.8,2951.4,10.62236759]
[1765834704373,0.001,2951.8,2951.7,0.4609]
[1765834704747,0.001,2951.8,2951.5,0.58047529]
[1765834705071,0.001,2951.8,2951.7,0.4609]
[1765834705361,0.4873,2951.8,2951.5,0.58047529]
[1765834705657,0.001,2951.8,2951.5,0.58047529]
[1765834706474,0.4873,2951.8,2951.6,3.38799295]
[1765834706766,0.001,2951.8,2951.6,3.38799295]
[1765834706968,0.001,2951.8,2951.6,6.7759859]
[1765834708174,0.001,2951.8,2951.7,0.4609]
[1765834708374,0.001,2951.8,2951.7,5.03016676]
[1765834711070,0.001,2951.8,2951.7,4.69204205]
[1765834711253,0.001,2951.8,2950.9,9.55226986]
[1765834711254,0.8057,2951.8,2950.5,0.462]
[1765834711456,0.59,2951.7,2950.7,3.38901319]
[1765834711750,0.4987,2950.6,2950.1,3.38964572]
[1765834711934,1.0397,2950.6,2950.2,3.38954198]
[1765834712133,1.0397,2950.6,2950.4,3.38933481]
[1765834712333,1.0397,2950.6,2950.3,3.38945522]
[1765834712740,1.0397,2950.6,2950.2,6.7792014]
[1765834712944,0.8558,2950.6,2950.2,6.7792014]
[1765834717892,0.8558,2950.6,2950.2,3.3896007]
[1765834718477,0.037,2950.3,2950.2,3.3896007]
[1765834718674,3.38892377,2950.8,2950.2,3.3896007]
[1765834718989,0.54,2951.1,2950.3,0.4574]
[1765834720087,0.9936,2951.1,2950.3,0.4574]
[1765834720294,0.001,2950.8,2950.3,0.4574]
[1765834720499,0.001,2950.8,2950.4,10.16811279]
[1765834720681,0.001,2950.8,2950.7,0.4532]
[1765834721082,0.001,2950.8,2950.5,1.03787529]
[1765834721282,0.001,2950.8,2950.7,0.4532]
[1765834721686,0.001,2950.8,2950.7,0.9106]
[1765834722704,0.001,2950.8,2950.7,4.29962633]
[1765834722892,0.001,2950.8,2950.7,5.12654981]
[1765834726500,0.001,2950.8,2950.7,5.7070251]
[1765834728683,0.001,2950.8,2950.7,5.74091536]
[1765834729201,0.001,2951.8,2950.8,0.58047529]
[1765834729390,0.001,2951.8,2951.7,0.4532]
[1765834729877,0.001,2951.8,2951.7,0.9106]
[1765834730500,0.001,2951.8,2951.7,3.38787817]
[1765834730702,0.001,2951.8,2951.7,3.84107817]
[1765834731388,0.001,2951.8,2951.7,3.38787817]
[1765834731913,0.3606,2951.8,2951.6,3.38793468]
[1765834732085,0.3606,2951.8,2951.6,3.38799295]
[1765834732086,0.1875,2951.7,2951.6,3.38799295]
[1765834734388,0.1875,2951.7,2950.9,1.03787529]
[1765834734389,0.6411,2951.7,2950.9,1.03787529]
[1765834734589,0.174,2951.6,2951.4,3.38821908]
[1765834735087,0.1874,2951.5,2951.3,3.38833152]
[1765834735478,0.1741,2951.4,2951.2,3.38844111]
[1765834735680,0.9936,2951.5,2951.2,3.38844111]
[1765834735880,0.3596,2951.3,2951.2,3.38844111]
[1765834737616,0.3596,2951.3,2951.1,3.38851879]
[1765834738507,0.4526,2951.2,2951.1,3.38851879]
[1765834738808,0.4526,2951.2,2950.8,7.36029825]
[1765834738980,0.4526,2951.2,2950.8,8.93836896]
[1765834739181,0.54,2951.5,2951.1,0.4532]
[1765834739607,0.9936,2951.5,2951.1,0.4532]
[1765834740090,0.54,2951.6,2951.1,1.1086]
[1765834740485,0.54,2951.6,2951.5,0.4532]
[1765834740684,0.54,2951.6,2951.5,4.29870774]
[1765834741210,0.8122,2951.6,2950.8,0.002]
[1765834741409,0.5445,2951.5,2950.8,3.39090958]
[1765834741608,0.5445,2951.5,2950.9,3.38878997]
[1765834741609,0.4536,2951.4,2950.9,3.38878997]
[1765834741807,0.0045,2951.5,2950.9,3.38878997]
[1765834741808,0.54,2951.3,2950.9,3.38878997]
[1765834742184,1.01,2951.3,2950.9,6.7775866]
[1765834743487,1.01,2951.3,2950.8,0.002]
[1765834744108,0.54,2951.4,2950.9,0.4719]
[1765834744316,0.001,2951.8,2950.9,0.4719]
[1765834744513,0.54,2951.7,2951.3,0.4588]
[1765834744807,1.01,2951.7,2950.8,1.12415523]
[1765834745187,1.01,2951.7,2950.8,1.59605523]
[1765834745188,0.47,2951.6,2950.8,1.59605523]
[1765834745514,0.47,2951.6,2950.9,6.77759326]
[1765834746216,4.297938,2951.6,2950.8,3.39089021]
[1765834746400,4.297938,2951.6,2950.8,3.39089859]
[1765834746401,0.0034,2950.9,2950.8,3.39089859]
[1765834746594,0.1978,2950.9,2950.8,0.002]
[1765834746791,0.6678,2950.9,2950.8,0.002]
[1765834748383,4.4622367,2950.9,2950.8,0.002]
[1765834748713,1.07344007,2950.9,2950.8,0.002]
[1765834749013,4.4622367,2950.9,2950.8,0.002]
[1765834750207,4.5122367,2950.9,2950.8,0.002]
[1765834752008,5.0022367,2950.9,2950.8,0.002]
[1765834752211,4.4622367,2950.9,2950.8,0.002]
[1765834752411,5.0022367,2950.9,2950.8,0.002]
[1765834752613,1.61344007,2950.9,2950.8,0.002]
[1765834752813,1.2078,2950.9,2950.8,0.002]
[1765834753315,4.59659663,2950.9,2950.8,0.002]
[1765834753718,1.2078,2950.9,2950.8,0.002]
[1765834754816,0.5434,2950.9,2950.8,0.002]
[1765834755815,4.59659663,2950.9,2950.8,0.002]
[1765834755995,5.06125629,2950.9,2950.8,0.002]
[1765834756817,1.67245966,2950.9,2950.8,0.002]
[1765834757200,4.59659663,2950.9,2950.8,0.002]
[1765834761334,1.2078,2950.9,2950.8,0.002]
[1765834761503,0.5444,2950.9,2950.8,0.002]
[1765834761903,0.541,2950.9,2950.8,0.4608]
[1765834762111,0.001,2950.9,2950.8,0.4608]
[1765834762315,0.001,2950.9,2950.8,0.9327]
[1765834762515,0.001,2950.9,2950.8,0.4608]
[1765834763228,0.3349,2950.9,2950.8,0.002]
[1765834763431,0.3363,2950.9,2950.8,0.002]
[1765834763612,0.998,2950.9,2950.8,0.002]
[1765834763809,0.3349,2950.9,2950.8,0.002]
[1765834764503,0.3349,2950.9,2950.8,3.39091148]
[1765834765233,0.3349,2950.9,2950.8,0.002]
[1765834765840,0.9993,2950.9,2950.8,0.002]
[1765834766035,0.5293,2950.9,2950.8,0.002]
[1765834766246,0.001,2950.9,2950.8,0.002]
[1765834766937,0.3363,2950.9,2950.8,0.002]
[1765834769205,0.8036,2950.9,2950.8,0.002]
[1765834769407,0.3363,2950.9,2950.8,0.002]
[1765834770142,0.998,2950.9,2950.8,0.002]
[1765834770634,1.49066024,2950.9,2950.8,0.002]
[1765834771939,4.87945687,2950.9,2950.8,0.002]
[1765834773303,5.28496087,2950.9,2950.8,0.002]
[1765834773638,5.86543616,2950.9,2950.8,0.002]
[1765834774146,12.19543616,2950.9,2950.8,0.002]
[1765834775436,12.73543616,2950.9,2950.8,0.002]
[1765834776745,4.96727192,2950.9,2950.8,0.002]
[1765834776952,5.50727192,2950.9,2950.8,0.002]
[1765834784447,4.92679663,2950.9,2950.8,0.002]